Workbook

Sheet Chute de tension
C6: Calculateur | D6: Type | E6: Puissance | F6: Nombre d'usager | H6: P Transfo = | I6: 160 | J6: kVA
C7: 1 | D7: Mono sur Phase1 | E7: 70 | F7: 1 | H7: V = | I7: 230.6 | J7: Volts
C8: 2 | D8: Mono sur Phase2 | E8: 6 | F8: 1 | H8: Cos Phi = | I8: 0.8
C9: 3 | D9: Triphasé | E9: 12 | F9: 1
C10: 4
C11: 5
C12: 6
C13: 7
C14: 8
C15: 9
C16: 10
C17: Puissance retenue par phase | D17: P1 | E17: P2 | F17: P3
D18: =Formule!P15 -> 74 | E18: =Formule!Q15 -> 10 | F18: =Formule!R15 -> 4
A23: Tronçon principal | B23: Longueur | C23: Section phase | D23: Section neutre | E23: Type | F23: P1 | G23: P2 | H23: P3 | I23: Zph | J23: Zn | K23: xN | L23: xP1 | M23: xP2 | N23: xP3 | O23: yN | P23: yP1 | Q23: yP2 | R23: yP3 | S23: V1 | T23: V2 | U23: V3 | V23: U12 | W23: U13 | X23: U23 | Y23: Intensité P1 | Z23: Intensité P2 | AA23: Intensité P3 | AB23: dU/U P1-N | AC23: dU/U P2-N | AD23: dU/U P3-N | AE23: dU/U U12 | AF23: dU/U U13 | AG23: dU/U U23 | AH23: Pcc (kW) | AI23: I Max
A24: Tension sortie transfo | K24: 0 | L24: =$I$7*COS(0) -> 230.6 | M24: =$I$7*COS(2*PI()/3) -> -115.3 | N24: =$I$7*COS(4*PI()/3) -> -115.3 | O24: 0 | P24: =$I$7*SIN(0) -> 0 | Q24: =$I$7*SIN(2*PI()/3) -> 199.7054581 | R24: =$I$7*SIN(4*PI()/3) -> -199.7054581 | S24: =SQRT(($L24-$K24)^2+($P24-$O24)^2) -> 230.6 | T24: =SQRT(($M24-$K24)^2+($Q24-$O24)^2) -> 230.6 | U24: =SQRT(($N24-$K24)^2+($R24-$O24)^2) -> 230.6 | V24: =SQRT(($L24-$M24)^2+($P24-$Q24)^2) -> 399.4109162 | W24: =SQRT(($N24-$L24)^2+($R24-$P24)^2) -> 399.4109162 | X24: =SQRT(($N24-$M24)^2+($R24-$Q24)^2) -> 399.4109162 | AB24: =AB25 -> -0.1927624756 | AC24: =AC25 -> 0.03791295053 | AD24: =AD25 -> 0.05834832739 | AE24: -0.04960459532 | AF24: -0.0459947925 | AG24: -0.008307482045
A25: Tronçon 1 | B25: 150 | C25: 150 | D25: 70 | E25: AL | F25: 74 | G25: 10 | H25: 4 | I25: =IF(OR(B25="",C25="",D25="",E25=""),0,(VLOOKUP($E25,Formule!$B$3:$C$5,2,FALSE)/1000/$C25*$B25)+VLOOKUP($I$6,Formule!$B$10:$C$17,2)+0) -> 0.0505 | J25: =IF(OR(B25="",C25="",D25="",E25=""),0,(VLOOKUP($E25,Formule!$B$3:$C$5,2,FALSE)/1000/$D25*$B25)+0) -> 0.06664285714 | K25: =$K24+$Y25*$J25+$J25*$Z25*(M24-K24)/$T24+$J25*$AA25*($N24-$K24)/$U24 -> 24.20355284 | L25: =$L24-($L24-$K24)*$Y25*$I25/$S24 -> 210.3430616 | M25: =$M24-($M24-$K24)*$Z25*$I25/$T24 -> -113.9312879 | N25: =$N24-($N24-$K24)*$AA25*$I25/$U24 -> -114.7525152 | O25: =$O24+$J25*$Z25*($Q24-$O24)/$T24+$J25*$AA25*($R24-$O24)/$U24 -> 1.877094772 | P25: =$P24-($P24-$O24)*$Y25*$I25/$S24 -> 0 | Q25: =$Q24-($Q24-$O24)*$Z25*$I25/$T24 -> 197.3347793 | R25: =$R24-($R24-$P24)*$AA25*$I25/$U24 -> -198.7571866 | S25: =SQRT(($L25-$K25)^2+($P25-$O25)^2) -> 186.1489731 | T25: =SQRT(($M25-$K25)^2+($Q25-$O25)^2) -> 239.3427264 | U25: =SQRT(($N25-$K25)^2+($R25-$O25)^2) -> 244.0551243 | V25: =SQRT(($L25-$M25)^2+($P25-$Q25)^2) -> 379.5982994 | W25: =SQRT(($N25-$L25)^2+($R25-$P25)^2) -> 381.040094 | X25: =SQRT(($N25-$M25)^2+($R25-$Q25)^2) -> 396.0928172 | Y25: =IF($I25<>0,(($F25*1000)/($I$7*$I$8)),0) -> 401.1274935 | Z25: =IF($I25<>0,(($G25*1000)/($I$7*$I$8)),0) -> 54.20641804 | AA25: =IF($I25<>0,(($H25*1000)/($I$8*$I$7)),0) -> 21.68256722 | AB25: =(S25-$I$7)/$I$7 -> -0.1927624756 | AC25: =(T25-$I$7)/$I$7 -> 0.03791295053 | AD25: =(U25-$I$7)/$I$7 -> 0.05834832739 | AE25: =(V25-($I$7*SQRT(3)))/($I$7*SQRT(3)) -> -0.04960459532 | AF25: =(W25-($I$7*SQRT(3)))/($I$7*SQRT(3)) -> -0.0459947925 | AG25: =(X25-($I$7*SQRT(3)))/($I$7*SQRT(3)) -> -0.008307482045 | AH25: =(MAX($V25:$X25)*(MAX($V25:$X25)/I25)*$I$8*SQRT(3))/1000 -> 4304.801894 | AI25: =IF(C25="","",IMax(C25)) -> 335 | AY25: =IF(OR(AI25<Y25,AI25<Z25,AI25<AA25),1,"") -> 1

Sheet Formule
B2: Conducteurs | K2: Coefficients de pondération
B3: AL | C3: 31.1 | D3: Ohm/km/mm² | J3: =IF($R$16<=K3,1,"") -> 1 | K3: 4 | L3: 1 | M3: 0.62 | O3: ='Chute de tension'!C6 -> Calculateur | P3: ='Chute de tension'!D6 -> Type | Q3: ='Chute de tension'!E6 -> Puissance | R3: ='Chute de tension'!F6 -> Nombre d'usager
B4: AM | C4: 34 | D4: Ohm/km/mm² | J4: =IF($R$16<=K4,IF($R$16>K3,1,""),"") ->  | K4: 9 | L4: 0.78 | M4: 0.64 | O4: ='Chute de tension'!C7 -> 1 | P4: ='Chute de tension'!D7 -> Mono sur Phase1 | Q4: ='Chute de tension'!E7 -> 70 | R4: ='Chute de tension'!F7 -> 1 | S4: =R4*Q4 -> 70
B5: CU | C5: 18.4 | D5: Ohm/km/mm² | K5: 14 | L5: 0.63 | M5: 0.68 | O5: ='Chute de tension'!C8 -> 2 | P5: ='Chute de tension'!D8 -> Mono sur Phase2 | Q5: ='Chute de tension'!E8 -> 6 | R5: ='Chute de tension'!F8 -> 1 | S5: =R5*Q5 -> 6
K6: 19 | L6: 0.53 | M6: 0.7 | O6: ='Chute de tension'!C9 -> 3 | P6: ='Chute de tension'!D9 -> Triphasé | Q6: ='Chute de tension'!E9 -> 12 | R6: ='Chute de tension'!F9 -> 1 | S6: 12
K7: 24 | L7: 0.49 | M7: 0.72 | O7: ='Chute de tension'!C10 -> 4 | P7: ='Chute de tension'!D10 -> 0 | Q7: ='Chute de tension'!E10 -> 0 | R7: ='Chute de tension'!F10 -> 0 | S7: 0
K8: 29 | L8: 0.46 | M8: 0.74 | O8: ='Chute de tension'!C11 -> 5 | P8: ='Chute de tension'!D11 -> 0 | Q8: ='Chute de tension'!E11 -> 0 | R8: ='Chute de tension'!F11 -> 0 | S8: 0
B9: Poste HTA/BT | K9: 34 | L9: 0.44 | M9: 0.76 | O9: ='Chute de tension'!C12 -> 6 | P9: ='Chute de tension'!D12 -> 0 | Q9: ='Chute de tension'!E12 -> 0 | R9: ='Chute de tension'!F12 -> 0 | S9: 0
B10: 0 | C10: 0 | D10: Ohms | K10: 39 | L10: 0.42 | M10: 0.78 | O10: ='Chute de tension'!C13 -> 7 | P10: ='Chute de tension'!D13 -> 0 | Q10: ='Chute de tension'!E13 -> 0 | R10: ='Chute de tension'!F13 -> 0 | S10: 0
B11: 50 | C11: 0.0857 | D11: Ohms | E11: Valeur par défaut (hypothèse conservatrice) | K11: 49 | L11: 0.41 | M11: 0.8 | O11: ='Chute de tension'!C14 -> 8 | P11: ='Chute de tension'!D14 -> 0 | Q11: ='Chute de tension'!E14 -> 0 | R11: ='Chute de tension'!F14 -> 0 | S11: 0
B12: 100 | C12: 0.0341 | D12: Ohms | E12: source EDF HN 52-S-54 | K12: 999999999999999 | L12: 0.38 | M12: 0.82 | O12: ='Chute de tension'!C15 -> 9 | P12: ='Chute de tension'!D15 -> 0 | Q12: ='Chute de tension'!E15 -> 0 | R12: ='Chute de tension'!F15 -> 0 | S12: 0
B13: 160 | C13: 0.0194 | D13: Ohms | L13: C14-100 | M13: Extreme | O13: ='Chute de tension'!C16 -> 10 | P13: ='Chute de tension'!D16 -> 0 | Q13: ='Chute de tension'!E16 -> 0 | R13: ='Chute de tension'!F16 -> 0 | S13: 0
B14: 250 | C14: 0.010752 | D14: Ohms | O14: ='Chute de tension'!C17 -> Puissance retenue par phase | P14: ='Chute de tension'!D17 -> P1 | Q14: ='Chute de tension'!E17 -> P2 | R14: ='Chute de tension'!F17 -> P3
B15: 400 | C15: 0.006 | D15: Ohms | P15: =SUMPRODUCT((P4:P13="Mono sur Phase1")*(Q4:Q13*R4:R13))+(SUMPRODUCT((P4:P13="Triphasé")*(Q4:Q13*R4:R13))/3)*VLOOKUP(1,$J$3:$L$12,3,FALSE) -> 74 | Q15: =SUMPRODUCT((P4:P13="Mono sur Phase2")*(Q4:Q13*R4:R13))+(SUMPRODUCT((P4:P13="Triphasé")*(Q4:Q13*R4:R13))/3)*VLOOKUP(1,$J$3:$L$12,3,FALSE) -> 10 | R15: =SUMPRODUCT((P4:P13="Mono sur Phase3")*(Q4:Q13*R4:R13))+(SUMPRODUCT((P4:P13="Triphasé")*(Q4:Q13*R4:R13))/3)*VLOOKUP(1,$J$3:$L$12,3,FALSE) -> 4
B16: 630 | C16: 0.003386243386 | D16: Ohms | R16: =SUM(R4:R13) -> 3
B17: 1000 | C17: 0.00208 | D17: Ohms
O18: Charge monoP1 | P18: nb | Q18: Charge monoP2 | R18: nb | S18: Charge monoP3 | T18: nb
O19: =IF(P19=0,0,(SUMIF($P$4:$P$13,"Mono sur Phase1",$S$4:$S$13)+(SUMIF($P$4:$P$13,"Triphasé",$S$4:$S$13)/3))/P19) -> 37 | P19: =SUMIF($P$4:$P$13,"Mono sur Phase1",$R$4:$R$13)+SUMIF($P$4:$P$13,"Triphasé",$R$4:$R$13) -> 2 | Q19: =IF(R19=0,0,(SUMIF($P$4:$P$13,"Mono sur Phase2",$S$4:$S$13)+(SUMIF($P$4:$P$13,"Triphasé",$S$4:$S$13)/3))/R19) -> 5 | R19: =SUMIF($P$4:$P$13,"Mono sur Phase2",$R$4:$R$13)+SUMIF($P$4:$P$13,"Triphasé",$R$4:$R$13) -> 2 | S19: =IF(T19=0,0,(SUMIF($P$4:$P$13,"Mono sur Phase3",$S$4:$S$13)+(SUMIF($P$4:$P$13,"Triphasé",$S$4:$S$13)/3))/T19) -> 4 | T19: =SUMIF($P$4:$P$13,"Mono sur Phase3",$R$4:$R$13)+SUMIF($P$4:$P$13,"Triphasé",$R$4:$R$13) -> 1
B20: Dérivations
B21: D1
B22: D2
B23: D3
B24: D4
B25: D5
B26: D6
B27: D7
B28: D8
B29: D9
B30: D10
B31: D11
B32: D12
B33: D13
B34: D14
B35: D15 | F35: Câble
B36: D16 | F36: section nominale | G36: intensité de courant maxi admissible (Ampère)
B37: D17 | F37: 0.75 | G37: 12
B38: D18 | F38: 1 | G38: 15
B39: D19 | F39: 1.5 | G39: 18
B40: D20 | F40: 2.5 | G40: 26
F41: 4 | G41: 34
F42: 6 | G42: 44
F43: 10 | G43: 61
F44: 16 | G44: 82
F45: 25 | G45: 108
F46: 35 | G46: 135
F47: 50 | G47: 168
F48: 70 | G48: 207
F49: 95 | G49: 250
F50: 120 | G50: 292
F51: 150 | G51: 335
F52: 185 | G52: 382
F53: 240 | G53: 453
F54: 300 | G54: 523

Sheet Dimmensionnement intallation
B2: Outil de dimmensionnement d'installation électrique : permet de définir la puissance à souscrire en kVA
B5: Appareil | C5: Puissance absorbée en kW | D5: Cos phi | E5: Q (kVAR)
B6: 1 | C6: 18.5 | D6: 0.8 | E6: =IF(D6="","",C6*TANGENTE(ACOSINUS(D6))) -> 13.875
B7: 2 | E7: =IF(D7="","",C7*TANGENTE(ACOSINUS(D7))) -> 
B8: 3 | E8: =IF(D8="","",C8*TANGENTE(ACOSINUS(D8))) -> 
B9: 4 | E9: =IF(D9="","",C9*TANGENTE(ACOSINUS(D9))) -> 
B10: 5 | E10: =IF(D10="","",C10*TANGENTE(ACOSINUS(D10))) -> 
B11: 6 | E11: =IF(D11="","",C11*TANGENTE(ACOSINUS(D11))) -> 
B12: 7 | E12: =IF(D12="","",C12*TANGENTE(ACOSINUS(D12))) -> 
B13: 8 | E13: =IF(D13="","",C13*TANGENTE(ACOSINUS(D13))) -> 
B14: 9 | E14: =IF(D14="","",C14*TANGENTE(ACOSINUS(D14))) -> 
B15: 10 | E15: =IF(D15="","",C15*TANGENTE(ACOSINUS(D15))) -> 
B16: 11 | E16: =IF(D16="","",C16*TANGENTE(ACOSINUS(D16))) -> 
B17: 12 | E17: =IF(D17="","",C17*TANGENTE(ACOSINUS(D17))) -> 
B18: 13 | E18: =IF(D18="","",C18*TANGENTE(ACOSINUS(D18))) -> 
B19: 14 | E19: =IF(D19="","",C19*TANGENTE(ACOSINUS(D19))) -> 
B20: 15 | E20: =IF(D20="","",C20*TANGENTE(ACOSINUS(D20))) -> 
D21: Puissance active retenu : | E21: =SUM(C6:C20) -> 18.5 | F21: kW
D22: Puissance reactive retenu : | E22: =SUM(E6:E20) -> 13.875 | F22: kVAR
D23: Puissance apparente retenu : | E23: =SQRT((E21*E21)+(E22*E22)) -> 23.125 | F23: kVA
D24: Cos phi intallation : | E24: =E21/E23 -> 0.8
B26: Caul puissance aborbée
B27: Intensité (A) | C27: Cos phi | D27: Type
B28: 47 | C28: 0.8 | D28: Tri
C29: Puissance aborbée : | D29: =IF(D28="Tri",B28*C28*400*SQRT(3),B28*C28*230)/1000 -> 26.05004415 | E29: kW
